Workbook

Sheet Expenses
B3: Event Budget for [Event Name]
H4: Expenses
H6: Estimated | I6: Actual
C7: Total Expenses | H7: =SUM(D14,D22,D28,D35,H14,H22,H27) -> $1,145.00 | I7: =SUM(E14,E22,E28,E35,I14,I22,I27) -> $395.00
C9: Site | D9: Estimated | E9: Actual | G9: Refreshments | H9: Estimated | I9: Actual
C10: Room and hall fees | D10: $500.00 | E10: $250.00 | G10: Food
C11: Site staff | D11: $400.00 | E11: $50.00 | G11: Drinks
C12: Equipment | G12: Linens
C13: Tables and chairs | G13: Staff and gratuities
C14: Total | D14: =SUBTOTAL(109,Table1[Estimated]) -> $900.00 | E14: =SUBTOTAL(109,Table1[Actual]) -> $300.00 | G14: Total | H14: =SUBTOTAL(109,Table5[Estimated]) -> $0.00 | I14: =SUBTOTAL(109,Table5[Actual]) -> $0.00
C16: Decorations | D16: Estimated | E16: Actual | G16: Program | H16: Estimated | I16: Actual
C17: Flowers | D17: $200.00 | E17: $50.00 | G17: Performers
C18: Candles | G18: Speakers
C19: Lighting | G19: Travel
C20: Balloons | G20: Hotel
C21: Paper supplies | G21: Other
C22: Total | D22: =SUBTOTAL(109,Table2[Estimated]) -> $200.00 | E22: =SUBTOTAL(109,Table2[Actual]) -> $50.00 | G22: Total | H22: =SUBTOTAL(109,Table6[Estimated]) -> $0.00 | I22: =SUBTOTAL(109,Table6[Actual]) -> $0.00
C24: Publicity | D24: Estimated | E24: Actual | G24: Prizes | H24: Estimated | I24: Actual
C25: Graphics work | D25: $45.00 | E25: $45.00 | G25: Ribbons/Plaques/Trophies
C26: Photocopying/Printing | G26: Gifts
C27: Postage | G27: Total | H27: =SUBTOTAL(109,Table7[Estimated]) -> $0.00 | I27: =SUBTOTAL(109,Table7[Actual]) -> $0.00
C28: Total | D28: =SUBTOTAL(109,Table3[Estimated]) -> $45.00 | E28: =SUBTOTAL(109,Table3[Actual]) -> $45.00
C30: Miscellaneous | D30: Estimated | E30: Actual
C31: Telephone
C32: Transportation
C33: Stationery supplies
C34: Fax services
C35: Total | D35: =SUBTOTAL(109,Table4[Estimated]) -> $0.00 | E35: =SUBTOTAL(109,Table4[Actual]) -> $0.00

Sheet Income
B3: Event Budget for [Event Name]
F4: Income
F6: Estimated | G6: Actual
B7: Total Income | F7: =SUM(F14,F21,F28,F36) -> $1,936.00 | G7: =SUM(G14,G21,G28,G36) -> $1,831.00
B9: Admissions
B10: Estimated | C10: Actual | F10: Estimated | G10: Actual
B11: 300 | C11: 278 | D11: Adults @ | E11: $5.00 | F11: =B11*E11 -> $1,500.00 | G11: =C11*E11 -> $1,390.00
B12: 197 | C12: 195 | D12: Children @ | E12: $2.00 | F12: =B12*E12 -> $394.00 | G12: =C12*E12 -> $390.00
B13: 42 | C13: 51 | D13: Other @ | E13: $1.00 | F13: =B13*E13 -> $42.00 | G13: =C13*E13 -> $51.00
F14: =SUM(F11:F13) -> $1,936.00 | G14: =SUM(G11:G13) -> $1,831.00
B16: Ads in program
B17: Estimated | C17: Actual | F17: Estimated | G17: Actual
D18: Covers @ | F18: =B18*E18 -> $0.00 | G18: =C18*E18 -> $0.00
D19: Half-pages @ | F19: =B19*E19 -> $0.00 | G19: =C19*E19 -> $0.00
D20: Quarter-pages @ | F20: =B20*E20 -> $0.00 | G20: =C20*E20 -> $0.00
F21: =SUM(F18:F20) -> $0.00 | G21: =SUM(G18:G20) -> $0.00
B23: Exhibitors/vendors
B24: Estimated | C24: Actual | F24: Estimated | G24: Actual
D25: Large booths @ | F25: =B25*E25 -> $0.00 | G25: =C25*E25 -> $0.00
D26: Med. booths @ | F26: =B26*E26 -> $0.00 | G26: =C26*E26 -> $0.00
D27: Small booths @ | F27: =B27*E27 -> $0.00 | G27: =C27*E27 -> $0.00
F28: =SUM(F25:F27) -> $0.00 | G28: =SUM(G25:G27) -> $0.00
B30: Sale of items
B31: Estimated | C31: Actual | F31: Estimated | G31: Actual
D32: Items @ | F32: =B32*E32 -> $0.00 | G32: =C32*E32 -> $0.00
D33: Items @ | F33: =B33*E33 -> $0.00 | G33: =C33*E33 -> $0.00
D34: Items @ | F34: =B34*E34 -> $0.00 | G34: =C34*E34 -> $0.00
D35: Items @ | F35: =B35*E35 -> $0.00 | G35: =C35*E35 -> $0.00
F36: =SUM(F32:F35) -> $0.00 | G36: =SUM(G32:G35) -> $0.00

Sheet Summary
B3: Event Budget for [Event Name]
F4: Profit-Loss Summary
F6: Estimated | G6: Actual
B7: Total income | F7: =Income!F7 -> $1,936.00 | G7: =Income!G7 -> $1,831.00
B8: Total expenses | F8: =Expenses!H7 -> $1,145.00 | G8: =Expenses!I7 -> $395.00
B9: Total profit (or loss) | F9: =F7-F8 -> $791.00 | G9: =G7-G8 -> $1,436.00
